T,TT,Date,Purpose/Category (T),Department/Service (T),Amount Excl VAT,Beneficiary (T)
B,SI,03/01/2020,Wasps Expenditure,Councillors Community Fund,544.99,9th Burton Scout Grp
B,SI,20/01/2020,Contract Payments,Brewhouse Arts Centre,561.00,Abbey Glass (Derby) Ltd.
B,PI,13/01/2020,Contract Payments,Brewhouse Arts Centre,"1,200.98",Ace Electrical Services
B,PI,13/01/2020,Contract Payments,Brewhouse Arts Centre,"1,096.21",Ace Electrical Services
B,PI,13/01/2020,Contract Payments,Brewhouse Arts Centre,935.42,Ace Electrical Services
B,PI,13/01/2020,Contract Payments,Brewhouse Arts Centre,686.69,Ace Electrical Services
B,PI,04/02/2020,Repairs & Maintenance to Buildings,Facilities Management,"1,909.66",Ace Electrical Services
B,PI,18/12/2019,Repairs & Maintenance to Buildings,Facilities Management,"1,448.08",Ace Electrical Services
B,SI,09/12/2019,Repairs & Maintenance to Buildings,Facilities Management,600.00,Ace Electrical Services
B,PI,24/11/2019,Repairs & Maintenance to Buildings,Facilities Management,720.00,Ace Electrical Services
B,PI,18/12/2019,Repairs & Maintenance to Buildings,Facilities Management,"1,491.28",Ace Electrical Services
B,SI,20/02/2020,Accommodation Costs - B & B/Hotels,Housing Options - Accommodation,"1,395.00",AH Investment Solutions Limited
B,SI,20/03/2020,Accommodation Costs - B & B/Hotels,Housing Options - Accommodation,"1,305.00",AH Investment Solutions Limited
B,SI,20/03/2020,Accommodation Costs - B & B/Hotels,Housing Options - Accommodation,"1,305.00",AH Investment Solutions Limited
B,SI,20/02/2020,Accommodation Costs - B & B/Hotels,Housing Options - Accommodation,630.00,AH Investment Solutions Limited
B,SI,20/03/2020,Accommodation Costs - B & B/Hotels,Housing Options - Accommodation,"1,740.00",AH Investment Solutions Limited
B,SI,20/02/2020,Accommodation Costs - B & B/Hotels,Housing Options - Accommodation,"1,395.00",AH Investment Solutions Limited
B,SI,20/03/2020,Accommodation Costs - B & B/Hotels,Housing Options - Accommodation,"1,035.00",AH Investment Solutions Limited
B,SI,20/02/2020,Accommodation Costs - B & B/Hotels,Housing Options - Accommodation,630.00,AH Investment Solutions Limited
B,SI,20/03/2020,Accommodation Costs - B & B/Hotels,Housing Options - Accommodation,"1,305.00",AH Investment Solutions Limited
B,SI,20/01/2020,Accommodation Costs - B & B/Hotels,Housing Options - Accommodation,"1,485.00",AH Investment Solutions Limited
B,SI,20/01/2020,Accommodation Costs - B & B/Hotels,Housing Options - Accommodation,770.00,AH Investment Solutions Limited
B,SI,20/01/2020,Accommodation Costs - B & B/Hotels,Housing Options - Accommodation,"1,035.00",AH Investment Solutions Limited
B,SI,31/03/2020,Accommodation Costs - B & B/Hotels,Housing Options - Accommodation,660.00,AH Investment Solutions Limited
B,SI,20/01/2020,Accommodation Costs - B & B/Hotels,Housing Options - Accommodation,"1,440.00",AH Investment Solutions Limited
B,SI,10/10/2019,Consultants,Housing Benefits Admin,750.00,Airey Consultancy Services Ltd
B,PI,14/02/2020,Consultants,Development Control,"1,350.00",Alan Wood & Partners
B,PI,04/02/2020,Exhibitions/Events,Horticultural Resource Centre,"1,990.86",Amberol Limited
B,PI,11/02/2020,Exhibitions/Events,Horticultural Resource Centre,908.87,Amberol Limited
B,SI,20/12/2019,Compensation Payment,Asset Management,989.82,An Individual
B,SI,07/01/2020,Other Expenses,Brewhouse Community Ticket Sales,"1,864.00",An Individual
B,SI,18/03/2020,Other Expenses,Brewhouse Community Ticket Sales,910.00,An Individual
B,SI,08/01/2020,Fees and Charges,Building Consultancy Chargeable Activities,540.00,An Individual
B,SI,02/03/2020,Salaries,Council Tax Collection,967.27,An Individual
B,SI,13/03/2020,Fees and Charges,Development Control,924.00,An Individual
B,PI,28/02/2020,Consultants,Environmental Health,866.00,An Individual
B,PI,31/01/2020,Consultants,Environmental Health,900.00,An Individual
B,PI,19/12/2019,Consultants,Environmental Health,"1,050.00",An Individual
B,SI,20/03/2020,Flood Compensation Payments,Flood Compensation Payments,500.00,An Individual
B,SI,20/03/2020,Flood Compensation Payments,Flood Compensation Payments,500.00,An Individual
B,SI,20/03/2020,Flood Compensation Payments,Flood Compensation Payments,500.00,An Individual
B,SI,20/03/2020,Flood Compensation Payments,Flood Compensation Payments,500.00,An Individual
B,SI,20/03/2020,Flood Compensation Payments,Flood Compensation Payments,500.00,An Individual
B,SI,26/03/2020,Flood Compensation Payments,Flood Compensation Payments,500.00,An Individual
B,SI,20/03/2020,Flood Compensation Payments,Flood Compensation Payments,500.00,An Individual
B,SI,20/03/2020,Flood Compensation Payments,Flood Compensation Payments,500.00,An Individual
B,SI,23/03/2020,Flood Compensation Payments,Flood Compensation Payments,500.00,An Individual
B,SI,31/03/2020,Flood Compensation Payments,Flood Compensation Payments,500.00,An Individual
B,SI,26/03/2020,Flood Compensation Payments,Flood Compensation Payments,500.00,An Individual
B,SI,20/03/2020,Flood Compensation Payments,Flood Compensation Payments,500.00,An Individual
B,SI,20/03/2020,Flood Compensation Payments,Flood Compensation Payments,500.00,An Individual
B,SI,20/03/2020,Flood Compensation Payments,Flood Compensation Payments,500.00,An Individual
B,SI,26/03/2020,Flood Compensation Payments,Flood Compensation Payments,500.00,An Individual
B,SI,20/03/2020,Flood Compensation Payments,Flood Compensation Payments,500.00,An Individual
B,SI,26/03/2020,Flood Compensation Payments,Flood Compensation Payments,500.00,An Individual
B,SI,20/03/2020,Flood Compensation Payments,Flood Compensation Payments,500.00,An Individual
B,SI,20/03/2020,Flood Compensation Payments,Flood Compensation Payments,500.00,An Individual
B,SI,20/03/2020,Flood Compensation Payments,Flood Compensation Payments,500.00,An Individual
B,SI,31/03/2020,Flood Compensation Payments,Flood Compensation Payments,500.00,An Individual
B,SI,23/03/2020,Flood Compensation Payments,Flood Compensation Payments,500.00,An Individual
B,SI,20/03/2020,Flood Compensation Payments,Flood Compensation Payments,500.00,An Individual
B,SI,20/03/2020,Flood Compensation Payments,Flood Compensation Payments,500.00,An Individual
B,SI,20/03/2020,Flood Compensation Payments,Flood Compensation Payments,500.00,An Individual
B,SI,26/03/2020,Flood Compensation Payments,Flood Compensation Payments,500.00,An Individual
B,SI,26/03/2020,Flood Compensation Payments,Flood Compensation Payments,500.00,An Individual
B,SI,20/03/2020,Flood Compensation Payments,Flood Compensation Payments,500.00,An Individual
B,SI,20/03/2020,Flood Compensation Payments,Flood Compensation Payments,500.00,An Individual
B,SI,20/03/2020,Flood Compensation Payments,Flood Compensation Payments,500.00,An Individual
B,SI,20/03/2020,Flood Compensation Payments,Flood Compensation Payments,500.00,An Individual
B,SI,20/03/2020,Flood Compensation Payments,Flood Compensation Payments,500.00,An Individual
B,SI,20/03/2020,Flood Compensation Payments,Flood Compensation Payments,500.00,An Individual
B,SI,26/03/2020,Flood Compensation Payments,Flood Compensation Payments,500.00,An Individual
B,SI,20/03/2020,Flood Compensation Payments,Flood Compensation Payments,500.00,An Individual
B,SI,20/03/2020,Flood Compensation Payments,Flood Compensation Payments,500.00,An Individual
B,SI,20/03/2020,Flood Compensation Payments,Flood Compensation Payments,500.00,An Individual
B,SI,20/03/2020,Flood Compensation Payments,Flood Compensation Payments,500.00,An Individual
B,SI,20/03/2020,Flood Compensation Payments,Flood Compensation Payments,500.00,An Individual
B,SI,20/03/2020,Flood Compensation Payments,Flood Compensation Payments,500.00,An Individual
B,SI,20/03/2020,Flood Compensation Payments,Flood Compensation Payments,500.00,An Individual
B,SI,20/03/2020,Flood Compensation Payments,Flood Compensation Payments,500.00,An Individual
B,SI,20/03/2020,Flood Compensation Payments,Flood Compensation Payments,500.00,An Individual
B,SI,20/03/2020,Flood Compensation Payments,Flood Compensation Payments,500.00,An Individual
B,SI,26/03/2020,Flood Compensation Payments,Flood Compensation Payments,500.00,An Individual
B,SI,26/03/2020,Flood Compensation Payments,Flood Compensation Payments,500.00,An Individual
B,SI,30/03/2020,Flood Compensation Payments,Flood Compensation Payments,500.00,An Individual
B,SI,20/03/2020,Flood Compensation Payments,Flood Compensation Payments,500.00,An Individual
B,SI,31/03/2020,Flood Compensation Payments,Flood Compensation Payments,500.00,An Individual
B,SI,20/03/2020,Flood Compensation Payments,Flood Compensation Payments,500.00,An Individual
B,SI,20/03/2020,Flood Compensation Payments,Flood Compensation Payments,500.00,An Individual
B,SI,26/03/2020,Flood Compensation Payments,Flood Compensation Payments,500.00,An Individual
B,SI,26/03/2020,Flood Compensation Payments,Flood Compensation Payments,500.00,An Individual
B,SI,26/03/2020,Flood Compensation Payments,Flood Compensation Payments,500.00,An Individual
B,SI,20/03/2020,Flood Compensation Payments,Flood Compensation Payments,500.00,An Individual
B,SI,26/03/2020,Flood Compensation Payments,Flood Compensation Payments,500.00,An Individual
B,SI,31/03/2020,Flood Compensation Payments,Flood Compensation Payments,500.00,An Individual
B,SI,26/03/2020,Flood Compensation Payments,Flood Compensation Payments,500.00,An Individual
B,SI,20/03/2020,Flood Compensation Payments,Flood Compensation Payments,500.00,An Individual
B,SI,31/03/2020,Flood Compensation Payments,Flood Compensation Payments,500.00,An Individual
B,SI,23/03/2020,Flood Compensation Payments,Flood Compensation Payments,500.00,An Individual
B,SI,26/03/2020,Flood Compensation Payments,Flood Compensation Payments,500.00,An Individual
B,SI,31/03/2020,Flood Compensation Payments,Flood Compensation Payments,500.00,An Individual
B,SI,20/03/2020,Flood Compensation Payments,Flood Compensation Payments,500.00,An Individual
B,SI,26/03/2020,Flood Compensation Payments,Flood Compensation Payments,500.00,An Individual
B,SI,20/03/2020,Flood Compensation Payments,Flood Compensation Payments,500.00,An Individual
B,SI,26/03/2020,Flood Compensation Payments,Flood Compensation Payments,500.00,An Individual
B,SI,31/03/2020,Flood Compensation Payments,Flood Compensation Payments,500.00,An Individual
B,SI,20/03/2020,Flood Compensation Payments,Flood Compensation Payments,500.00,An Individual
B,SI,20/03/2020,Flood Compensation Payments,Flood Compensation Payments,500.00,An Individual
B,SI,23/03/2020,Flood Compensation Payments,Flood Compensation Payments,500.00,An Individual
B,SI,20/03/2020,Flood Compensation Payments,Flood Compensation Payments,500.00,An Individual
B,SI,31/03/2020,Flood Compensation Payments,Flood Compensation Payments,500.00,An Individual
B,SI,20/03/2020,Flood Compensation Payments,Flood Compensation Payments,500.00,An Individual
B,SI,20/03/2020,Flood Compensation Payments,Flood Compensation Payments,500.00,An Individual
B,SI,26/03/2020,Flood Compensation Payments,Flood Compensation Payments,500.00,An Individual
B,SI,20/03/2020,Flood Compensation Payments,Flood Compensation Payments,500.00,An Individual
B,SI,31/03/2020,Flood Compensation Payments,Flood Compensation Payments,500.00,An Individual
B,SI,31/03/2020,Flood Compensation Payments,Flood Compensation Payments,500.00,An Individual
B,SI,20/03/2020,Flood Compensation Payments,Flood Compensation Payments,500.00,An Individual
B,SI,20/03/2020,Flood Compensation Payments,Flood Compensation Payments,500.00,An Individual
B,SI,20/03/2020,Flood Compensation Payments,Flood Compensation Payments,500.00,An Individual
B,SI,20/03/2020,Flood Compensation Payments,Flood Compensation Payments,500.00,An Individual
B,SI,26/03/2020,Flood Compensation Payments,Flood Compensation Payments,500.00,An Individual
B,SI,20/03/2020,Flood Compensation Payments,Flood Compensation Payments,500.00,An Individual
B,SI,23/03/2020,Flood Compensation Payments,Flood Compensation Payments,500.00,An Individual
B,SI,31/03/2020,Flood Compensation Payments,Flood Compensation Payments,500.00,An Individual
B,SI,20/03/2020,Flood Compensation Payments,Flood Compensation Payments,500.00,An Individual
B,SI,31/03/2020,Flood Compensation Payments,Flood Compensation Payments,500.00,An Individual
B,SI,20/03/2020,Flood Compensation Payments,Flood Compensation Payments,500.00,An Individual
B,SI,20/03/2020,Flood Compensation Payments,Flood Compensation Payments,500.00,An Individual
B,SI,31/03/2020,Flood Compensation Payments,Flood Compensation Payments,500.00,An Individual
B,SI,26/03/2020,Flood Compensation Payments,Flood Compensation Payments,500.00,An Individual
B,SI,26/03/2020,Flood Compensation Payments,Flood Compensation Payments,500.00,An Individual
B,SI,20/03/2020,Flood Compensation Payments,Flood Compensation Payments,500.00,An Individual
B,SI,26/03/2020,Flood Compensation Payments,Flood Compensation Payments,500.00,An Individual
B,SI,20/03/2020,Flood Compensation Payments,Flood Compensation Payments,500.00,An Individual
B,SI,20/03/2020,Flood Compensation Payments,Flood Compensation Payments,500.00,An Individual
B,SI,20/03/2020,Flood Compensation Payments,Flood Compensation Payments,500.00,An Individual
B,SI,26/03/2020,Flood Compensation Payments,Flood Compensation Payments,500.00,An Individual
B,SI,26/03/2020,Flood Compensation Payments,Flood Compensation Payments,500.00,An Individual
B,SI,20/03/2020,Flood Compensation Payments,Flood Compensation Payments,500.00,An Individual
B,SI,26/03/2020,Flood Compensation Payments,Flood Compensation Payments,500.00,An Individual
B,SI,26/03/2020,Flood Compensation Payments,Flood Compensation Payments,500.00,An Individual
B,SI,20/03/2020,Flood Compensation Payments,Flood Compensation Payments,500.00,An Individual
B,SI,20/03/2020,Flood Compensation Payments,Flood Compensation Payments,500.00,An Individual
B,SI,20/03/2020,Flood Compensation Payments,Flood Compensation Payments,500.00,An Individual
B,SI,20/03/2020,Flood Compensation Payments,Flood Compensation Payments,500.00,An Individual
B,SI,26/03/2020,Flood Compensation Payments,Flood Compensation Payments,500.00,An Individual
B,SI,26/03/2020,Flood Compensation Payments,Flood Compensation Payments,500.00,An Individual
B,SI,20/03/2020,Flood Compensation Payments,Flood Compensation Payments,500.00,An Individual
B,SI,20/03/2020,Flood Compensation Payments,Flood Compensation Payments,500.00,An Individual
B,SI,20/03/2020,Flood Compensation Payments,Flood Compensation Payments,500.00,An Individual
B,SI,31/03/2020,Flood Compensation Payments,Flood Compensation Payments,500.00,An Individual
B,SI,26/03/2020,Flood Compensation Payments,Flood Compensation Payments,500.00,An Individual
B,SI,20/03/2020,Flood Compensation Payments,Flood Compensation Payments,500.00,An Individual
B,SI,20/03/2020,Flood Compensation Payments,Flood Compensation Payments,500.00,An Individual
B,SI,20/03/2020,Flood Compensation Payments,Flood Compensation Payments,500.00,An Individual
B,SI,20/03/2020,Flood Compensation Payments,Flood Compensation Payments,500.00,An Individual
B,SI,31/03/2020,Flood Compensation Payments,Flood Compensation Payments,500.00,An Individual
B,SI,20/03/2020,Flood Compensation Payments,Flood Compensation Payments,500.00,An Individual
B,SI,31/03/2020,Flood Compensation Payments,Flood Compensation Payments,500.00,An Individual
B,SI,31/03/2020,Flood Compensation Payments,Flood Compensation Payments,500.00,An Individual
B,SI,20/03/2020,Flood Compensation Payments,Flood Compensation Payments,500.00,An Individual
B,SI,26/03/2020,Flood Compensation Payments,Flood Compensation Payments,500.00,An Individual
B,SI,26/03/2020,Flood Compensation Payments,Flood Compensation Payments,500.00,An Individual
B,SI,02/03/2020,Other Homeless Prevention,Housing Options,"1,080.00",An Individual
B,SI,24/02/2020,General Grants,Housing Options,"1,200.00",An Individual
B,PI,12/12/2019,"Clothing, Uniforms and Laundry",Community and Civil Enforcement,"1,385.50",Arco Limited
B,PI,24/03/2020,Direct Purchases,DSO Stores Account,693.75,Arco Limited
B,PI,23/03/2020,Direct Purchases,DSO Stores Account,718.00,Arco Limited
B,PI,10/01/2020,Direct Purchases,Refuse Collection,"1,100.50",Arco Limited
B,SI,04/02/2020,Accommodation Costs - B & B/Hotels,Housing Options - Accommodation,"1,190.00",Ascot Hotel
B,SI,23/03/2020,Accommodation Costs - B & B/Hotels,Housing Options - Accommodation,540.00,Ascot Hotel
B,SI,11/02/2020,Accommodation Costs - B & B/Hotels,Housing Options - Accommodation,930.00,Ascot Hotel
B,SI,12/02/2020,Accommodation Costs - B & B/Hotels,Housing Options - Accommodation,960.00,Ascot Hotel
B,SI,04/03/2020,Accommodation Costs - B & B/Hotels,Housing Options - Accommodation,870.00,Ascot Hotel
B,SI,18/01/2020,Accommodation Costs - B & B/Hotels,Housing Options - Accommodation,"2,170.00",Ascot Hotel
B,SI,19/02/2020,Software Licenses & Contracts,Development Control,"3,750.00",Astun Technology
B,SI,24/03/2020,Other Equipment,Project WIRED,"1,472.50",Baby People Limited
B,PI,19/12/2019,Grounds Maintenance,Open Spaces,570.00,Barlow & Associates Ltd
B,PI,27/02/2020,Repairs & Maintenance to Buildings,Millers Lane Depot,850.00,Bartec Auto ID Ltd
B,PI,27/02/2020,Contract Payments,Street Cleaning,908.50,Bartec Auto ID Ltd
B,PI,27/03/2020,Contract Payments,Street Cleaning,"8,250.00",Bartec Auto ID Ltd
B,SI,26/02/2020,Other Expenses,Brewhouse Community Ticket Sales,"10,454.00",BASE
B,SI,12/12/2019,Consultants,Asset Management,950.00,BB&J Commercial
B,SI,07/02/2020,Third Party Payments,Recycling,"1,895.07",Biffa Waste Services Limited
B,SI,14/02/2020,Third Party Payments,Recycling,"1,853.47",Biffa Waste Services Limited
B,SI,21/02/2020,Third Party Payments,Recycling,"1,506.29",Biffa Waste Services Limited
B,SI,19/02/2020,Third Party Payments,Recycling,"2,256.87",Biffa Waste Services Limited
B,SI,17/01/2020,Third Party Payments,Recycling,"1,983.25",Biffa Waste Services Limited
B,SI,31/03/2020,Third Party Payments,Recycling,"3,549.99",Biffa Waste Services Limited
B,SI,10/03/2020,Third Party Payments,Recycling,"39,633.93",Biffa Waste Services Limited
B,SI,19/02/2020,Third Party Payments,Recycling,"56,306.85",Biffa Waste Services Limited
B,SI,10/01/2020,Third Party Payments,Recycling,"2,714.21",Biffa Waste Services Limited
B,SI,27/12/2019,Third Party Payments,Recycling,839.66,Biffa Waste Services Limited
B,SI,07/01/2020,Third Party Payments,Recycling,"35,554.20",Biffa Waste Services Limited
B,SI,31/01/2020,Third Party Payments,Recycling,"1,586.71",Biffa Waste Services Limited
B,SI,13/12/2019,Third Party Payments,Recycling,"2,774.66",Biffa Waste Services Limited
B,SI,20/12/2019,Third Party Payments,Recycling,"2,133.55",Biffa Waste Services Limited
B,SI,07/01/2020,Third Party Payments,Recycling,"12,104.95",Biffa Waste Services Limited
B,SI,03/01/2020,Third Party Payments,Recycling,"1,177.97",Biffa Waste Services Limited
B,SI,24/01/2020,Third Party Payments,Recycling,"1,643.28",Biffa Waste Services Limited
B,SI,06/03/2020,Third Party Payments,Recycling,"1,741.44",Biffa Waste Services Limited
B,SI,11/12/2019,Third Party Payments,Recycling,"15,207.81",Biffa Waste Services Limited
B,SI,11/12/2019,Third Party Payments,Recycling,"36,181.03",Biffa Waste Services Limited
B,SI,13/03/2020,Third Party Payments,Recycling,"3,305.42",Biffa Waste Services Limited
B,SI,28/02/2020,Third Party Payments,Recycling,"1,382.06",Biffa Waste Services Limited
B,PI,22/01/2020,ICT Departmental Purchases,ICT,"1,150.00",Blue Cube Security Ltd
B,PI,26/03/2020,Software Licenses & Contracts,ICT,"7,095.00",Blue Cube Security Ltd
B,PI,02/03/2020,Temporary Staff Costs,Burton Town Hall Civic Building,629.00,Boss Security
B,PI,11/02/2020,DFG Contractor Payments,Housing Standards,"1,800.00",Botanics Construction
B,PI,07/02/2020,DFG Contractor Payments,Housing Standards,"1,500.00",Botanics Construction
B,PI,11/02/2020,DFG Contractor Payments,Housing Standards,"1,300.00",Botanics Construction
B,PI,21/01/2020,DFG Contractor Payments,Housing Standards,"1,800.00",Botanics Construction
B,PI,14/02/2020,DFG Contractor Payments,Housing Standards,"4,351.40",Botanics Construction
B,PI,14/02/2020,DFG Contractor Payments,Housing Standards,870.28,Botanics Construction
B,PI,07/01/2020,DFG Contractor Payments,Housing Standards,600.00,Botanics Construction
B,PI,31/03/2020,DFG Contractor Payments,Housing Standards,"4,090.00",Botanics Construction
B,PI,17/12/2019,DFG Contractor Payments,Housing Standards,"1,800.00",Botanics Construction
B,PI,21/01/2020,DFG Contractor Payments,Housing Standards,"3,500.00",Botanics Construction
B,PI,20/01/2020,DFG Contractor Payments,Housing Standards,"2,500.00",Botanics Construction
B,PI,31/03/2020,DFG Contractor Payments,Housing Standards,"2,650.32",Botanics Construction
B,SI,03/03/2020,Telephones,Closed Circuit Cameras,551.62,British Telecommunications
B,SI,07/02/2020,Advertising,Programmes and Transformation,"1,400.25",British Telecommunications plc
B,SI,21/02/2020,Advertising,Programmes and Transformation,"1,400.25",British Telecommunications plc
B,PI,17/02/2020,DFG Contractor Payments,Housing Standards,"15,939.00",Broad Oak Properties Limited
B,PI,12/02/2020,DFG Contractor Payments,Housing Standards,"7,750.00",Broad Oak Properties Limited
B,PI,17/03/2020,DFG Contractor Payments,Housing Standards,"3,887.00",Broad Oak Properties Limited
B,PI,21/11/2019,DFG Contractor Payments,Housing Standards,"5,244.50",Broad Oak Properties Limited
B,PI,08/11/2019,DFG Contractor Payments,Housing Standards,"4,985.00",Broad Oak Properties Limited
B,PI,25/03/2020,DFG Contractor Payments,Housing Standards,"4,270.00",Broad Oak Properties Limited
B,PI,26/03/2020,DFG Contractor Payments,Housing Standards,"8,000.00",Broad Oak Properties Limited
B,PI,21/02/2020,DFG Contractor Payments,Housing Standards,"8,141.00",Broad Oak Properties Limited
B,PI,12/02/2020,DFG Contractor Payments,Housing Standards,"4,150.00",Broad Oak Properties Limited
B,PI,26/11/2019,DFG Contractor Payments,Housing Standards,"5,107.00",Broad Oak Properties Limited
B,SI,16/12/2019,Parking Tickets,Car Parks - General,"1,652.30",Brown Advertising and Design
B,SI,25/02/2020,Growth Point Work,New Growth Points,"1,107.00",Browne Jacobson LLP
B,SI,23/12/2019,Growth Point Work,New Growth Points,560.00,Browne Jacobson LLP
B,PI,15/01/2020,Public/Civic Function Expenses,Burton Town Hall Civic Building,997.50,Budget Bridal Creationz
B,PI,15/01/2020,Public/Civic Function Expenses,Burton Town Hall Civic Building,750.00,Budget Bridal Creationz
B,SI,07/02/2020,Wasps Expenditure,Councillors Community Fund,720.00,Burton Albion Community Trust
B,SI,29/01/2020,Rents,Parliamentary Elections,700.00,Burton Albion Community Trust
B,SI,26/02/2020,Project Grant Payments,Social Regeneration,"15,000.00",Burton BKA
B,SI,03/03/2020,Other Expenses,Brewhouse Community Ticket Sales,"1,365.00",Burton Competitive Vocal Festival
B,SI,29/01/2020,Grounds Maintenance,Open Spaces,"1,064.40",Burton Place Shopping Centre
B,SI,24/01/2020,Commuted Sum Expenditure,Housing Options,"8,333.32",Burton upon Trent & District YMCA
B,SI,24/01/2020,Commuted Sum Expenditure,Housing Options,"13,333.50",Burton upon Trent & District YMCA
B,SI,24/01/2020,General Grants,Housing Options,"30,000.00",Burton upon Trent & District YMCA
B,SI,24/01/2020,General Grants,Housing Options,"21,500.00",Burton upon Trent & District YMCA
B,PI,10/12/2019,Set up Crews,Burton Town Hall Civic Building,840.00,C W Tree Services
B,PI,30/01/2020,Set up Crews,Burton Town Hall Civic Building,900.00,C W Tree Services
B,PI,14/01/2020,Set up Crews,Burton Town Hall Civic Building,900.00,C W Tree Services
B,PI,28/02/2020,Set up Crews,Burton Town Hall Civic Building,720.00,C W Tree Services
B,PI,19/12/2019,Haulage of Ballot Boxes/Polling Booths,Parliamentary Elections,"2,565.00",C W Tree Services
B,SI,11/02/2020,Other Expenses,Brewhouse Community Ticket Sales,"11,985.00",Cabaret Theatre School
B,PI,08/01/2020,General Grants,Enterprise,"5,000.00",Campaign to Reopen the Ivanhoe Line - CRIL CIC
B,SI,27/02/2020,Hire of Equipment,Central Reprographics,677.93,Canon Uk Ltd
B,SI,30/01/2020,Hire of Equipment,Central Reprographics,943.71,Canon Uk Ltd
B,SI,23/01/2020,Hire of Equipment,Central Reprographics,517.96,Canon Uk Ltd
B,SI,26/12/2019,Hire of Equipment,Central Reprographics,627.67,Canon Uk Ltd
B,SI,09/12/2019,Contactless Card Processing Costs,Car Parks - General,574.72,Capita Business Services Ltd
B,SI,13/03/2020,Contactless Card Processing Costs,Car Parks - General,527.36,Capita Business Services Ltd
B,SI,09/01/2020,Contactless Card Processing Costs,Car Parks - General,622.96,Capita Business Services Ltd
B,SI,13/02/2020,Contactless Card Processing Costs,Car Parks - General,510.72,Capita Business Services Ltd
B,SI,05/03/2020,Software Licenses & Contracts,Council Tax Collection,"28,480.51",Capita Business Services Ltd
B,PI,31/01/2020,Training Expenses,Council Tax Collection,900.00,Capita Software Services
B,SI,26/03/2020,Project Grant Payments,Social Regeneration,"1,000.00",Carver Road Community Centre
B,PI,10/02/2020,Repairs & Maintenance to Buildings,Burton Town Hall Civic Building,526.63,Chauvet Europe Ltd
B,PI,28/01/2020,Christmas Decorations,Grants for Tourism,"2,758.95",Christmas Plus
B,PI,24/03/2020,Subscriptions,Environmental Health,515.00,CIEH
B,PI,08/01/2020,Subscriptions,Environmental Health,"1,125.00",CIEH
B,SI,30/01/2020,Subscriptions,Business Rate Collection,725.00,CIPFA Business Ltd
B,SI,30/01/2020,Subscriptions,Council Tax Collection,725.00,CIPFA Business Ltd
B,SI,25/11/2019,Books and Publications,Financial Management Unit,"1,103.75",CIPFA Business Ltd
B,SI,31/01/2020,Subscriptions,Financial Management Unit,"2,800.00",CIPFA Business Ltd
B,SI,04/03/2020,Subscriptions,Financial Management Unit,500.00,CIPFA Business Ltd
B,SI,31/01/2020,Subscriptions,Financial Management Unit,"2,975.00",CIPFA Business Ltd
B,SI,30/01/2020,Subscriptions,Housing Benefits Admin,725.00,CIPFA Business Ltd
B,SI,27/01/2020,Penalty Charge Notice Processing,Car Parks - General,"2,689.50",City Of Stoke On Trent
B,SI,18/02/2020,Printing and Stationery,Council Elections,"1,985.64",Civica Election Services Limited
B,SI,31/12/2019,Printing and Stationery,Parliamentary Elections,"5,314.62",Civica Election Services Limited
B,SI,31/12/2019,Printing and Stationery,Parliamentary Elections,"20,492.20",Civica Election Services Limited
B,PI,17/12/2019,ICT Departmental Purchases,ICT,"1,383.04",Civica Uk Ltd
B,PI,15/01/2020,Franking Machine Postages,Central Reprographics,"2,350.00",CJB Printing Equipment
B,SI,31/12/2019,Temporary Staff Costs,Recycling,"4,708.37",Comensura Ltd
B,SI,24/12/2019,Temporary Staff Costs,Recycling,"3,441.28",Comensura Ltd
B,SI,12/01/2020,Temporary Staff Costs,Recycling,"3,220.99",Comensura Ltd
B,SI,18/03/2020,Temporary Staff Costs,Recycling,"3,187.12",Comensura Ltd
B,SI,05/01/2020,Temporary Staff Costs,Recycling,"3,962.19",Comensura Ltd
B,SI,19/01/2020,Temporary Staff Costs,Recycling,"3,655.14",Comensura Ltd
B,SI,02/02/2020,Temporary Staff Costs,Recycling,"1,380.24",Comensura Ltd
B,SI,26/01/2020,Temporary Staff Costs,Recycling,"1,683.88",Comensura Ltd
B,SI,29/03/2020,Temporary Staff Costs,Recycling,965.96,Comensura Ltd
B,SI,26/02/2020,Temporary Staff Costs,Recycling,"2,057.59",Comensura Ltd
B,SI,16/02/2020,Temporary Staff Costs,Recycling,"3,085.34",Comensura Ltd
B,SI,08/03/2020,Temporary Staff Costs,Recycling,"1,788.79",Comensura Ltd
B,SI,09/02/2020,Temporary Staff Costs,Recycling,"2,370.90",Comensura Ltd
B,SI,01/03/2020,Temporary Staff Costs,Recycling,"1,877.13",Comensura Ltd
B,SI,25/03/2020,Temporary Staff Costs,Recycling,"1,879.45",Comensura Ltd
B,SI,18/03/2020,Temporary Staff Costs,Refuse Collection,"2,355.66",Comensura Ltd
B,SI,08/03/2020,Temporary Staff Costs,Refuse Collection,"3,799.78",Comensura Ltd
B,SI,26/02/2020,Temporary Staff Costs,Refuse Collection,"2,653.17",Comensura Ltd
B,SI,31/12/2019,Temporary Staff Costs,Refuse Collection,"1,992.37",Comensura Ltd
B,SI,05/01/2020,Temporary Staff Costs,Refuse Collection,"2,765.60",Comensura Ltd
B,SI,12/01/2020,Temporary Staff Costs,Refuse Collection,"2,042.59",Comensura Ltd
B,SI,02/02/2020,Temporary Staff Costs,Refuse Collection,"3,362.58",Comensura Ltd
B,SI,01/03/2020,Temporary Staff Costs,Refuse Collection,"3,204.81",Comensura Ltd
B,SI,29/03/2020,Temporary Staff Costs,Refuse Collection,"4,067.19",Comensura Ltd
B,SI,25/03/2020,Temporary Staff Costs,Refuse Collection,"3,014.81",Comensura Ltd
B,SI,26/01/2020,Temporary Staff Costs,Refuse Collection,"3,452.48",Comensura Ltd
B,SI,24/12/2019,Temporary Staff Costs,Refuse Collection,"1,567.12",Comensura Ltd
B,SI,09/02/2020,Temporary Staff Costs,Refuse Collection,"2,407.92",Comensura Ltd
B,SI,16/02/2020,Temporary Staff Costs,Refuse Collection,"3,695.03",Comensura Ltd
B,SI,19/01/2020,Temporary Staff Costs,Refuse Collection,"2,344.98",Comensura Ltd
B,SI,02/02/2020,Temporary Staff Costs,Street Cleaning,923.85,Comensura Ltd
B,SI,31/12/2019,Temporary Staff Costs,Street Cleaning,649.65,Comensura Ltd
B,SI,12/01/2020,Temporary Staff Costs,Street Cleaning,950.55,Comensura Ltd
B,SI,05/01/2020,Temporary Staff Costs,Street Cleaning,"1,699.62",Comensura Ltd
B,SI,09/02/2020,Temporary Staff Costs,Street Cleaning,"1,208.46",Comensura Ltd
B,SI,16/02/2020,Temporary Staff Costs,Street Cleaning,"1,398.20",Comensura Ltd
B,SI,18/03/2020,Temporary Staff Costs,Street Cleaning,923.85,Comensura Ltd
B,SI,26/02/2020,Temporary Staff Costs,Street Cleaning,923.85,Comensura Ltd
B,SI,29/03/2020,Temporary Staff Costs,Street Cleaning,923.85,Comensura Ltd
B,SI,25/03/2020,Temporary Staff Costs,Street Cleaning,831.28,Comensura Ltd
B,SI,08/03/2020,Temporary Staff Costs,Street Cleaning,"1,027.92",Comensura Ltd
B,SI,19/12/2019,Consultants,Legal Services,750.00,Cornerstone Barristers
B,SI,23/01/2020,Consultants,Legal Services,"3,750.00",Cornerstone Barristers
B,SI,27/02/2020,Consultants,Licensing,"2,000.00",Cornerstone Barristers
B,SI,22/01/2020,Legal Costs,Licensing,750.00,Cornerstone Barristers
B,PI,30/03/2020,Consultants,Development Control,"2,100.00",CP Viability Ltd
B,PI,30/03/2020,Consultants,Development Control,"2,100.00",CP Viability Ltd
B,PI,19/11/2019,Consultants,Development Control,500.00,CP Viability Ltd
B,PI,29/01/2020,Provision of Wheelie Bins,Refuse Collection,"11,212.50",Craemer UK Limited
B,PI,10/03/2020,Training Expenses,Corporate Training,"1,250.00",Cruse Bereavement Care
B,PI,08/01/2020,Professional Theatre Fees,Brewhouse Arts Centre,700.00,"Curly Tales, Leeds Playhouse"
B,PI,21/12/2019,Grounds Maintenance,Open Spaces,"4,550.00",D S K Engineering Services
B,PI,21/12/2019,Grounds Maintenance,Open Spaces,"2,748.00",D S K Engineering Services
B,PI,15/01/2020,Grounds Maintenance,Open Spaces,"2,650.00",D S K Engineering Services
B,PI,15/02/2020,Grounds Maintenance,Open Spaces,"1,609.00",D S K Engineering Services
B,PI,15/02/2020,Grounds Maintenance,Open Spaces,"2,765.00",D S K Engineering Services
B,PI,15/01/2020,Grounds Maintenance,Open Spaces,"1,140.00",D S K Engineering Services
B,PI,15/01/2020,Grounds Maintenance,Open Spaces,"3,000.00",D S K Engineering Services
B,PI,15/01/2020,Grounds Maintenance,Open Spaces,"3,235.00",D S K Engineering Services
B,PI,15/01/2020,Grounds Maintenance,Open Spaces,"4,500.00",D S K Engineering Services
B,PI,15/01/2020,Grounds Maintenance,Open Spaces,"4,600.00",D S K Engineering Services
B,PI,15/02/2020,Play Equipment,Open Spaces,811.00,D S K Engineering Services
B,PI,15/02/2020,Play Equipment,Open Spaces,"3,212.00",D S K Engineering Services
B,PI,21/12/2019,Play Equipment,Open Spaces,"1,740.00",D S K Engineering Services
B,PI,21/12/2019,Play Equipment,Open Spaces,"1,094.00",D S K Engineering Services
B,PI,15/01/2020,Play Equipment,Open Spaces,"2,260.00",D S K Engineering Services
B,SI,11/03/2020,Wasps Expenditure,Councillors Community Fund,"1,000.00",Denstone Players
B,SI,29/01/2020,Rents,Parliamentary Elections,525.00,Denstone Village Hall Committee
B,SI,07/01/2020,Dangerous Structures,Building Consultancy Chargeable Activities,"1,080.00",Derbyshire Building Control Partnership
B,SI,21/01/2020,Commission on Ticket Sales,Customer Services Centres,955.00,Derbyshire County Council
B,SI,31/12/2019,Criminal Records Searches,Licensing,"1,160.00",Disclosure & Barring Services
B,PI,13/11/2019,Repairs & Maintenance to Buildings,Burton Retail Market,788.00,Door Maintenance Specialists (S-o-T) Ltd.
B,PI,28/02/2020,Software Licenses & Contracts,Planning Policy,660.00,Dotted Eyes Ltd
B,SI,09/01/2020,Electricity,Car Parks - General,"1,276.68",e.on
B,SI,09/01/2020,Electricity,Closed Circuit Cameras,712.52,e.on
B,SI,16/02/2020,Electricity,Millers Lane Depot,597.58,e.on
B,SI,19/01/2020,Electricity,Millers Lane Depot,"1,086.69",e.on
B,SI,18/03/2020,Electricity,Millers Lane Depot,"2,258.99",e.on
B,SI,03/01/2020,Electricity,Millers Lane Depot,"1,654.19",e.on
B,SI,08/01/2020,Car Parks Maintenance,Open Spaces,"13,315.98",e.on
B,SI,02/03/2020,Electricity,Open Spaces,"1,186.60",e.on
B,PI,28/01/2020,Travel & Subsistence,Facilities Management,"11,062.50",East Midlands Railway
B,SI,20/12/2019,Other Fees & Charges,Parliamentary Elections,500.00,East Staffordshire Conservative Association
B,SI,20/12/2019,Other Fees & Charges,Parliamentary Elections,500.00,East Staffs Lib Dems
B,PI,16/12/2019,Provision of Wheelie Bins,Recycling,"1,057.50",Egbert H Taylor & Co Ltd
B,PI,16/12/2019,Provision of Wheelie Bins,Refuse Collection,926.20,Egbert H Taylor & Co Ltd
B,SI,20/12/2019,Other Fees & Charges,Parliamentary Elections,500.00,Election Claims Unit
B,PI,16/03/2020,Terms Maintenance,Open Spaces,"2,530.80",Elite Roofing & Cladding Ltd
B,PI,10/02/2020,Subscriptions,Chief Executive,"1,386.00",EMAP Publishing Ltd
B,PI,16/01/2020,Professional Theatre Fees,Brewhouse Arts Centre,"3,500.00",Entertainers Show Providers Ltd
B,SI,31/12/2019,Maintenance Contracts,Council Tax Collection,"2,962.50",Equifax Ltd
B,PI,27/01/2020,Provision of Wheelie Bins,Refuse Collection,"1,720.00",ESE World Limited
B,SI,26/11/2019,Vehicle Maintenance Costs,Community and Civil Enforcement,719.71,Filmers Garage Limited
B,SI,16/03/2020,Market Rental Deposits,Burton Retail Market,500.00,Fred Hallam LTD
B,SI,21/02/2020,Vehicle Maintenance Costs,Refuse Collection,600.32,Freight Transport Association
B,SI,18/03/2020,Wasps Expenditure,Councillors Community Fund,585.80,Friends of Scalpecliffe Woods
B,PI,20/02/2020,System Maintenance,Human Resources,"10,697.90",Frontier Software Plc
B,PI,20/02/2020,System Maintenance,Payroll & Payments,"10,697.90",Frontier Software Plc
B,PI,18/12/2019,General Grants,Social Regeneration,"1,421.00",G. A Cannell Memorials  Ltd
B,PI,12/02/2020,DFG Contractor Payments,Housing Standards,"9,396.00",Gainsborough Healthcare
B,PI,25/02/2020,Sports Equipment,Open Spaces,894.04,GB Sport & Leisure UK Ltd
B,PI,29/02/2020,Grounds Maintenance,Open Spaces,"3,970.00",Gilvar Lining Ltd
B,SI,04/03/2020,Vehicle Maintenance Costs,Recycling,"4,082.21",Go Plant Limited
B,SI,09/01/2020,Vehicle Maintenance Costs,Recycling,"4,082.21",Go Plant Limited
B,SI,09/01/2020,Vehicle Maintenance Costs,Recycling,"4,228.66",Go Plant Limited
B,PI,17/01/2020,Vehicle Maintenance Costs,Recycling,765.95,Go Plant Limited
B,SI,04/03/2020,Vehicle Maintenance Costs,Recycling,"4,082.21",Go Plant Limited
B,SI,09/01/2020,Vehicle Maintenance Costs,Recycling,"4,082.21",Go Plant Limited
B,SI,09/01/2020,Vehicle Maintenance Costs,Recycling,"4,082.21",Go Plant Limited
B,SI,04/03/2020,Vehicle Maintenance Costs,Recycling,"4,228.66",Go Plant Limited
B,SI,04/03/2020,Vehicle Maintenance Costs,Recycling,"4,082.21",Go Plant Limited
B,SI,01/02/2020,Vehicle Maintenance Costs,Recycling,"4,082.21",Go Plant Limited
B,SI,01/02/2020,Vehicle Maintenance Costs,Recycling,"4,082.21",Go Plant Limited
B,SI,01/02/2020,Vehicle Maintenance Costs,Recycling,"4,082.21",Go Plant Limited
B,SI,04/03/2020,Vehicle Maintenance Costs,Recycling,"4,082.21",Go Plant Limited
B,SI,09/01/2020,Vehicle Maintenance Costs,Recycling,"4,082.21",Go Plant Limited
B,SI,01/02/2020,Vehicle Maintenance Costs,Recycling,"4,082.21",Go Plant Limited
B,SI,04/03/2020,Vehicle Maintenance Costs,Recycling,"4,082.21",Go Plant Limited
B,SI,09/01/2020,Vehicle Maintenance Costs,Recycling,"4,082.21",Go Plant Limited
B,SI,01/02/2020,Vehicle Maintenance Costs,Recycling,"4,228.66",Go Plant Limited
B,SI,01/02/2020,Vehicle Maintenance Costs,Recycling,"4,082.21",Go Plant Limited
B,SI,04/03/2020,Vehicle Maintenance Costs,Refuse Collection,"2,595.80",Go Plant Limited
B,SI,04/03/2020,Vehicle Maintenance Costs,Refuse Collection,"3,274.62",Go Plant Limited
B,SI,04/03/2020,Vehicle Maintenance Costs,Refuse Collection,"3,426.16",Go Plant Limited
B,SI,01/02/2020,Vehicle Maintenance Costs,Refuse Collection,"3,274.62",Go Plant Limited
B,SI,09/01/2020,Vehicle Maintenance Costs,Refuse Collection,"3,274.62",Go Plant Limited
B,SI,01/02/2020,Vehicle Maintenance Costs,Refuse Collection,"3,274.62",Go Plant Limited
B,SI,01/02/2020,Vehicle Maintenance Costs,Refuse Collection,"3,274.62",Go Plant Limited
B,SI,09/01/2020,Vehicle Maintenance Costs,Refuse Collection,"3,274.62",Go Plant Limited
B,SI,04/03/2020,Vehicle Maintenance Costs,Refuse Collection,"3,274.62",Go Plant Limited
B,SI,04/03/2020,Vehicle Maintenance Costs,Refuse Collection,"3,274.62",Go Plant Limited
B,PI,17/01/2020,Vehicle Maintenance Costs,Refuse Collection,"1,499.35",Go Plant Limited
B,SI,01/02/2020,Vehicle Maintenance Costs,Refuse Collection,"3,426.16",Go Plant Limited
B,SI,04/03/2020,Vehicle Maintenance Costs,Refuse Collection,"3,274.62",Go Plant Limited
B,SI,01/02/2020,Vehicle Maintenance Costs,Refuse Collection,"2,595.80",Go Plant Limited
B,SI,04/03/2020,Vehicle Maintenance Costs,Refuse Collection,"3,274.62",Go Plant Limited
B,SI,04/03/2020,Vehicle Maintenance Costs,Refuse Collection,"3,274.62",Go Plant Limited
B,SI,09/01/2020,Vehicle Maintenance Costs,Refuse Collection,"3,426.16",Go Plant Limited
B,SI,04/03/2020,Vehicle Maintenance Costs,Refuse Collection,"3,274.62",Go Plant Limited
B,SI,09/01/2020,Vehicle Maintenance Costs,Refuse Collection,"2,595.80",Go Plant Limited
B,SI,09/01/2020,Vehicle Maintenance Costs,Refuse Collection,"3,274.62",Go Plant Limited
B,SI,09/01/2020,Vehicle Maintenance Costs,Refuse Collection,"3,274.62",Go Plant Limited
B,SI,09/01/2020,Vehicle Maintenance Costs,Refuse Collection,"3,274.62",Go Plant Limited
B,SI,01/02/2020,Vehicle Maintenance Costs,Refuse Collection,"3,274.62",Go Plant Limited
B,SI,09/01/2020,Vehicle Maintenance Costs,Refuse Collection,"3,274.62",Go Plant Limited
B,SI,01/02/2020,Vehicle Maintenance Costs,Refuse Collection,"3,274.62",Go Plant Limited
B,SI,09/01/2020,Vehicle Maintenance Costs,Refuse Collection,"3,274.62",Go Plant Limited
B,SI,01/02/2020,Vehicle Maintenance Costs,Refuse Collection,"3,274.62",Go Plant Limited
B,SI,01/02/2020,Vehicle Maintenance Costs,Refuse Collection,"3,274.62",Go Plant Limited
B,SI,01/02/2020,Vehicle Maintenance Costs,Street Cleaning,632.89,Go Plant Limited
B,SI,04/03/2020,Vehicle Maintenance Costs,Street Cleaning,713.46,Go Plant Limited
B,SI,01/02/2020,Vehicle Maintenance Costs,Street Cleaning,713.46,Go Plant Limited
B,SI,04/03/2020,Vehicle Maintenance Costs,Street Cleaning,"1,785.32",Go Plant Limited
B,SI,01/02/2020,Vehicle Maintenance Costs,Street Cleaning,"2,324.76",Go Plant Limited
B,SI,04/03/2020,Vehicle Maintenance Costs,Street Cleaning,713.46,Go Plant Limited
B,SI,04/03/2020,Vehicle Maintenance Costs,Street Cleaning,"1,785.32",Go Plant Limited
B,SI,01/02/2020,Vehicle Maintenance Costs,Street Cleaning,632.89,Go Plant Limited
B,SI,04/03/2020,Vehicle Maintenance Costs,Street Cleaning,"1,785.32",Go Plant Limited
B,SI,04/03/2020,Vehicle Maintenance Costs,Street Cleaning,632.89,Go Plant Limited
B,SI,01/02/2020,Vehicle Maintenance Costs,Street Cleaning,713.46,Go Plant Limited
B,SI,04/03/2020,Vehicle Maintenance Costs,Street Cleaning,"1,785.32",Go Plant Limited
B,SI,01/02/2020,Vehicle Maintenance Costs,Street Cleaning,"2,324.76",Go Plant Limited
B,SI,01/02/2020,Vehicle Maintenance Costs,Street Cleaning,632.89,Go Plant Limited
B,SI,09/01/2020,Vehicle Maintenance Costs,Street Cleaning,"1,785.32",Go Plant Limited
B,SI,01/02/2020,Vehicle Maintenance Costs,Street Cleaning,"1,785.32",Go Plant Limited
B,SI,09/01/2020,Vehicle Maintenance Costs,Street Cleaning,632.89,Go Plant Limited
B,SI,09/01/2020,Vehicle Maintenance Costs,Street Cleaning,713.46,Go Plant Limited
B,SI,09/01/2020,Vehicle Maintenance Costs,Street Cleaning,632.89,Go Plant Limited
B,SI,09/01/2020,Vehicle Maintenance Costs,Street Cleaning,"1,785.32",Go Plant Limited
B,SI,04/03/2020,Vehicle Maintenance Costs,Street Cleaning,"2,324.76",Go Plant Limited
B,SI,04/03/2020,Vehicle Maintenance Costs,Street Cleaning,"2,324.76",Go Plant Limited
B,SI,04/03/2020,Vehicle Maintenance Costs,Street Cleaning,632.89,Go Plant Limited
B,SI,09/01/2020,Vehicle Maintenance Costs,Street Cleaning,"1,785.32",Go Plant Limited
B,SI,01/02/2020,Vehicle Maintenance Costs,Street Cleaning,"1,785.32",Go Plant Limited
B,SI,09/01/2020,Vehicle Maintenance Costs,Street Cleaning,632.89,Go Plant Limited
B,SI,01/02/2020,Vehicle Maintenance Costs,Street Cleaning,"1,785.32",Go Plant Limited
B,SI,04/03/2020,Vehicle Maintenance Costs,Street Cleaning,632.89,Go Plant Limited
B,SI,09/01/2020,Vehicle Maintenance Costs,Street Cleaning,"2,324.76",Go Plant Limited
B,SI,09/01/2020,Vehicle Maintenance Costs,Street Cleaning,"2,324.76",Go Plant Limited
B,SI,01/02/2020,Vehicle Maintenance Costs,Street Cleaning,"1,785.32",Go Plant Limited
B,SI,09/01/2020,Vehicle Maintenance Costs,Street Cleaning,"1,785.32",Go Plant Limited
B,SI,09/01/2020,Vehicle Maintenance Costs,Street Cleaning,713.46,Go Plant Limited
B,SI,01/02/2020,Vehicle Maintenance Costs,Trade Waste Recycling,"3,274.62",Go Plant Limited
B,SI,09/01/2020,Vehicle Maintenance Costs,Trade Waste Recycling,"3,274.62",Go Plant Limited
B,SI,04/03/2020,Vehicle Maintenance Costs,Trade Waste Recycling,"3,274.62",Go Plant Limited
B,SI,20/01/2020,Commuted Sum Expenditure,Housing Options,"5,000.00",Grafton Research Services Ltd
B,PI,12/02/2020,Repairs & Maintenance to Buildings,Millers Lane Depot,682.24,H & G Ash Roadmarkings Ltd
B,PI,12/03/2020,Play Equipment,Open Spaces,790.38,Hammond & Taylor
B,PI,22/10/2019,DFG Contractor Payments,Housing Standards,"3,997.68",Handicare Accessibility Ltd
B,PI,20/01/2020,DFG Contractor Payments,Housing Standards,"4,065.00",Handicare Accessibility Ltd
B,PI,02/12/2019,DFG Contractor Payments,Housing Standards,"3,795.00",Handicare Accessibility Ltd
B,SI,23/01/2020,Contract Payments,Canal Street Ind Estate,"3,730.00",Harvey & Clark Ltd
B,SI,23/03/2020,Repairs & Maintenance to Buildings,Canal Street Ind Estate,"6,000.00",Harvey & Clark Ltd
B,PI,21/02/2020,DFG Contractor Payments,Housing Standards,"4,063.15",Harvey & Clark Ltd
B,PI,21/02/2020,DFG Contractor Payments,Housing Standards,"9,998.19",Harvey & Clark Ltd
B,PI,31/01/2020,DFG Contractor Payments,Housing Standards,"9,547.50",Harvey & Clark Ltd
B,PI,10/12/2019,DFG Contractor Payments,Housing Standards,"5,914.05",Harvey & Clark Ltd
B,PI,20/01/2020,DFG Contractor Payments,Housing Standards,"10,910.30",Harvey & Clark Ltd
B,PI,25/03/2020,DFG Contractor Payments,Housing Standards,"9,165.02",Harvey & Clark Ltd
B,PI,29/11/2019,Repairs & Maintenance to Buildings,Millers Lane Depot,"2,717.00",Harvey & Clark Ltd
B,PI,01/03/2020,Medical Examinations,Human Resources,563.33,Healthwork Ltd
B,SI,01/01/2020,Medical Examinations,Human Resources,563.33,Healthwork Ltd
B,SI,01/02/2020,Medical Examinations,Human Resources,563.33,Healthwork Ltd
B,PI,26/03/2020,DFG Contractor Payments,Housing Standards,"2,521.67",Herron Windows UK Ltd
B,PI,03/01/2020,Professional Theatre Fees,Brewhouse Arts Centre,825.00,Honalee Media
B,SI,02/03/2020,Project Grant Payments,Social Regeneration,"15,000.00",Horninglow & Eton Parish Council
B,PI,08/01/2020,Contracted Grounds Maintenance,Cemeteries,"1,374.56",Idverde Limited
B,PI,22/01/2020,Contracted Grounds Maintenance,Cemeteries,"1,763.34",Idverde Limited
B,PI,26/02/2020,Contracted Grounds Maintenance,Cemeteries,"2,033.22",Idverde Limited
B,PI,30/11/2019,Contracted Grounds Maintenance,Cemeteries,"6,784.42",Idverde Limited
B,PI,08/01/2020,Grounds Maintenance,Land Drainage,"2,185.19",Idverde Limited
B,PI,02/03/2020,Grounds Maintenance,Land Drainage,"2,044.21",Idverde Limited
B,PI,08/01/2020,Grounds Maintenance,Land Drainage,"4,088.42",Idverde Limited
B,PI,27/03/2020,Grounds Maintenance,Land Drainage,"2,819.60",Idverde Limited
B,SI,12/02/2020,Grounds Maintenance,Land Drainage,"2,185.19",Idverde Limited
B,PI,26/02/2020,Car Parks Maintenance,Open Spaces,571.08,Idverde Limited
B,PI,26/02/2020,Car Parks Maintenance,Open Spaces,"3,117.65",Idverde Limited
B,PI,26/02/2020,Car Parks Maintenance,Open Spaces,"2,494.12",Idverde Limited
B,PI,26/02/2020,Car Parks Maintenance,Open Spaces,"3,741.18",Idverde Limited
B,PI,31/12/2019,Car Parks Maintenance,Open Spaces,"1,715.10",Idverde Limited
B,PI,08/01/2020,Car Parks Maintenance,Open Spaces,571.08,Idverde Limited
B,PI,31/12/2019,Car Parks Maintenance,Open Spaces,"2,371.65",Idverde Limited
B,PI,31/01/2020,Car Parks Maintenance,Open Spaces,"2,371.65",Idverde Limited
B,PI,30/11/2019,Car Parks Maintenance,Open Spaces,"2,371.65",Idverde Limited
B,PI,31/01/2020,Car Parks Maintenance,Open Spaces,"1,715.10",Idverde Limited
B,PI,08/01/2020,Contracted Grounds Maintenance,Open Spaces,"3,088.45",Idverde Limited
B,PI,26/02/2020,Contracted Grounds Maintenance,Open Spaces,"1,753.77",Idverde Limited
B,PI,26/02/2020,Contracted Grounds Maintenance,Open Spaces,"2,899.30",Idverde Limited
B,PI,29/02/2020,Contracted Grounds Maintenance,Open Spaces,"18,622.58",Idverde Limited
B,PI,22/01/2020,Contracted Grounds Maintenance,Open Spaces,"2,526.14",Idverde Limited
B,PI,08/01/2020,Contracted Grounds Maintenance,Open Spaces,"4,157.12",Idverde Limited
B,PI,31/01/2020,Contracted Grounds Maintenance,Open Spaces,"16,533.35",Idverde Limited
B,PI,31/12/2019,Contracted Grounds Maintenance,Open Spaces,"18,132.49",Idverde Limited
B,PI,22/01/2020,Contracted Grounds Maintenance,Open Spaces,850.91,Idverde Limited
B,SI,01/02/2020,Software Licenses & Contracts,Legal Services,"2,027.76",Iken Business Ltd
B,PI,21/02/2020,Professional Theatre Fees,Brewhouse Arts Centre,"2,831.83",Impatient Productions Ltd
B,PI,27/09/2019,Professional Theatre Fees,Brewhouse Cafe/Bar,700.55,Impatient Productions Ltd
B,PI,17/03/2020,Direct Purchases,DSO Stores Account,"2,181.60",Imperial Polythene Products Ltd
B,PI,24/02/2020,Direct Purchases,DSO Stores Account,"1,080.00",Imperial Polythene Products Ltd
B,PI,17/03/2020,Direct Purchases,DSO Stores Account,"2,667.60",Imperial Polythene Products Ltd
B,PI,17/03/2020,Direct Purchases,Recycling,"2,581.20",Imperial Polythene Products Ltd
B,PI,31/01/2020,Other Equipment,Financial Management Unit,522.37,Insight Direct Uk
B,PI,20/03/2020,ICT Departmental Purchases,ICT,636.15,Insight Direct Uk
B,PI,18/03/2020,ICT Departmental Purchases,ICT,547.04,Insight Direct Uk
B,PI,17/03/2020,ICT Departmental Purchases,ICT,820.56,Insight Direct Uk
B,SI,29/11/2019,Christmas Decorations,Grants for Tourism,632.75,J & S Security Services
B,SI,01/03/2020,Rents,Open Spaces,"2,500.00",J T Leavesley Limited
B,SI,31/12/2019,Cash Collection Security Services,Community and Civil Enforcement,"3,808.00",Jade Security Services Ltd
B,PI,24/02/2020,"Seeds, Plants and Shrubs",Horticultural Resource Centre,"2,950.00",James Coles & Sons (Nurseries)
B,SI,30/03/2020,Accommodation Costs - B & B/Hotels,Housing Options,525.00,Johnsons Accomodation Ltd
B,SI,08/02/2020,Accommodation Costs - B & B/Hotels,Housing Options - Accommodation,"1,980.00",Johnsons Accomodation Ltd
B,SI,08/02/2020,Accommodation Costs - B & B/Hotels,Housing Options - Accommodation,775.00,Johnsons Accomodation Ltd
B,SI,23/03/2020,Accommodation Costs - B & B/Hotels,Housing Options - Accommodation,"1,740.00",Johnsons Accomodation Ltd
B,SI,27/02/2020,Accommodation Costs - B & B/Hotels,Housing Options - Accommodation,725.00,Johnsons Accomodation Ltd
B,SI,11/01/2020,Accommodation Costs - B & B/Hotels,Housing Options - Accommodation,775.00,Johnsons Accomodation Ltd
B,SI,15/02/2020,Accommodation Costs - B & B/Hotels,Housing Options - Accommodation,775.00,Johnsons Accomodation Ltd
B,SI,11/01/2020,Accommodation Costs - B & B/Hotels,Housing Options - Accommodation,735.00,Johnsons Accomodation Ltd
B,SI,17/02/2020,Accommodation Costs - B & B/Hotels,Housing Options - Accommodation,700.00,Johnsons Accomodation Ltd
B,SI,27/02/2020,Accommodation Costs - B & B/Hotels,Housing Options - Accommodation,775.00,Johnsons Accomodation Ltd
B,SI,09/03/2020,Accommodation Costs - B & B/Hotels,Housing Options - Accommodation,725.00,Johnsons Accomodation Ltd
B,SI,09/03/2020,Accommodation Costs - B & B/Hotels,Housing Options - Accommodation,625.00,Johnsons Accomodation Ltd
B,SI,05/03/2020,Accommodation Costs - B & B/Hotels,Housing Options - Accommodation,"1,740.00",Johnsons Accomodation Ltd
B,SI,11/01/2020,Accommodation Costs - B & B/Hotels,Housing Options - Accommodation,"2,790.00",Johnsons Accomodation Ltd
B,SI,27/02/2020,Accommodation Costs - B & B/Hotels,Housing Options - Accommodation,"1,860.00",Johnsons Accomodation Ltd
B,SI,08/02/2020,Accommodation Costs - B & B/Hotels,Housing Options - Accommodation,675.00,Johnsons Accomodation Ltd
B,SI,23/03/2020,Accommodation Costs - B & B/Hotels,Housing Options - Accommodation,"1,440.00",Johnsons Accomodation Ltd
B,SI,30/03/2020,Accommodation Costs - B & B/Hotels,Housing Options - Accommodation,"1,560.00",Johnsons Accomodation Ltd
B,SI,11/01/2020,Accommodation Costs - B & B/Hotels,Housing Options - Accommodation,775.00,Johnsons Accomodation Ltd
B,SI,29/01/2020,Consultants,Staffordshire Waste Project,"2,870.00",Keele University
B,PI,18/02/2020,"Seeds, Plants and Shrubs",Horticultural Resource Centre,"1,911.40",Kernock Park Plants Ltd
B,SI,13/02/2020,Legal Costs,Development Control,800.00,Kings Chambers
B,SI,04/03/2020,Rents,Coopers Square Car Park - Surface,"3,000.00",Knight Frank LLP
B,SI,24/02/2020,Subscriptions,Financial Management Unit,"5,870.00",L G Futures
B,SI,26/02/2020,Software Licenses & Contracts,Environmental Health,700.00,Lichfield District Council
B,PI,28/02/2020,Grounds Maintenance,Open Spaces,"1,000.00",Lichfield Tarmacadam Ltd
B,PI,28/02/2020,Car Parks Maintenance,Open Spaces,600.00,Lichfield Tarmacadam Ltd
B,PI,16/08/2019,Professional Support,Arts Grant Aid Scheme,"4,000.00",Live & Local Ltd
B,SI,06/03/2020,Car Park Season Ticket Income,Meadowside Leisure Centre Car Park,"2,021.64",Livens Limited
B,PI,08/01/2020,Training Expenses,Corporate Training,"2,000.00",Lloyd Morgan Group
B,PI,09/03/2020,Legal Costs,Business Rate Collection,"4,684.20",Local Government Association
B,PI,31/01/2020,Consultants,Yeoman Industrial Estate,"1,360.00",Low Energy Consultancy Ltd
B,PI,10/03/2020,DFG Contractor Payments,Housing Standards,"1,675.75",Lynch Healthcare Group
B,PI,12/02/2020,DFG Contractor Payments,Housing Standards,"3,016.68",Lynch Healthcare Group
B,PI,26/03/2020,DFG Contractor Payments,Housing Standards,"2,027.55",Lynch Healthcare Group
B,PI,31/03/2020,DFG Contractor Payments,Housing Standards,"2,609.01",Lynch Healthcare Group
B,SI,29/02/2020,Printing and Stationery,Central Reprographics,518.98,Lyreco Uk Ltd
B,PI,31/01/2020,Market Research,Enterprise,"4,740.00",M.E.L. Research Ltd
B,PI,12/01/2020,Temporary Staff Costs,Financial Management Unit,"1,451.19",Macildowie Associates Ltd
B,PI,08/03/2020,Temporary Staff Costs,Financial Management Unit,"1,490.34",Macildowie Associates Ltd
B,PI,31/01/2020,Temporary Staff Costs,Financial Management Unit,967.45,Macildowie Associates Ltd
B,PI,22/12/2019,Temporary Staff Costs,Financial Management Unit,"1,451.19",Macildowie Associates Ltd
B,PI,15/12/2019,Temporary Staff Costs,Financial Management Unit,"1,451.19",Macildowie Associates Ltd
B,PI,22/03/2020,Temporary Staff Costs,Financial Management Unit,993.55,Macildowie Associates Ltd
B,SI,26/01/2020,Temporary Staff Costs,Financial Management Unit,"1,451.19",Macildowie Associates Ltd
B,PI,29/02/2020,Temporary Staff Costs,Financial Management Unit,"1,490.34",Macildowie Associates Ltd
B,PI,15/03/2020,Temporary Staff Costs,Financial Management Unit,"1,490.34",Macildowie Associates Ltd
B,PI,19/01/2020,Temporary Staff Costs,Financial Management Unit,"1,451.19",Macildowie Associates Ltd
B,PI,23/02/2020,Temporary Staff Costs,Financial Management Unit,"2,024.17",Macildowie Associates Ltd
B,PI,09/02/2020,Temporary Staff Costs,Financial Management Unit,"1,451.19",Macildowie Associates Ltd
B,PI,16/02/2020,Temporary Staff Costs,Financial Management Unit,"1,426.62",Macildowie Associates Ltd
B,SI,06/03/2020,Wasps Expenditure,Councillors Community Fund,"1,000.00",Marchington Village Hall
B,PI,13/02/2020,Catering Supplies,Brewhouse Cafe/Bar,705.84,Marston�s Plc
B,PI,06/02/2020,Catering Supplies,Brewhouse Cafe/Bar,654.84,Marston�s Plc
B,PI,23/01/2020,Catering Supplies,Brewhouse Cafe/Bar,847.57,Marston�s Plc
B,PI,20/02/2020,Catering Supplies,Brewhouse Cafe/Bar,870.01,Marston�s Plc
B,PI,09/01/2020,Catering Supplies,Brewhouse Cafe/Bar,"1,032.40",Marston�s Plc
B,PI,10/10/2019,Catering Supplies,Brewhouse Cafe/Bar,578.77,Marston�s Plc
B,PI,05/12/2019,Catering Supplies,Brewhouse Cafe/Bar,"1,110.26",Marston�s Plc
B,PI,12/12/2019,Catering Supplies,Brewhouse Cafe/Bar,685.14,Marston�s Plc
B,PI,31/01/2020,"Fertilisers, Weedkiller and Insecticides",Street Cleaning,"1,200.00",Maxwell Amenity Ltd
B,SI,13/02/2020,Repairs & Maintenance to Buildings,Facilities Management,"1,014.38",Midland Fire & Security Services Ltd
B,PI,19/03/2020,Taxi Panels,Licensing,"2,752.00",Mogo Uk
B,PI,16/01/2020,Taxi Panels,Licensing,"1,492.00",Mogo Uk
B,PI,18/03/2020,"Seeds, Plants and Shrubs",Horticultural Resource Centre,604.80,Moles Seeds (uk) Ltd
B,PI,29/01/2020,"Seeds, Plants and Shrubs",Horticultural Resource Centre,690.20,Moles Seeds (uk) Ltd
B,SI,22/12/2019,Temporary Staff Costs,Council Tax Collection,901.55,Morgan Hunt UK Ltd
B,SI,15/12/2019,Temporary Staff Costs,Council Tax Collection,965.03,Morgan Hunt UK Ltd
B,PI,19/01/2020,Christmas Decorations,Grants for Tourism,600.00,Mr Christmas Tree Ltd
B,PI,18/03/2020,Direct Purchases,Street Cleaning,"2,202.56",N A Brown Ltd
B,PI,09/01/2020,Direct Purchases,Street Cleaning,"1,008.10",N A Brown Ltd
B,PI,26/02/2020,Training Expenses,Corporate Training,"2,000.00",NABMA
B,PI,18/12/2019,Miscellaneous Licenses,Programmes and Transformation,786.00,NLA Media Access Ltd
B,SI,28/02/2020,Direct Purchases,Millers Lane Depot,630.44,Nobisco Limited
B,SI,20/12/2019,Direct Purchases,Millers Lane Depot,697.07,Nobisco Limited
B,SI,31/01/2020,Direct Purchases,Millers Lane Depot,"1,924.01",Nobisco Limited
B,PI,28/02/2020,Temporary Staff Costs,Housing Benefits Admin,"1,440.00",Northgate Public Services (Uk) Ltd
B,PI,23/12/2019,Temporary Staff Costs,Housing Benefits Admin,"1,280.00",Northgate Public Services (Uk) Ltd
B,SI,31/01/2020,Temporary Staff Costs,Housing Benefits Admin,"1,600.00",Northgate Public Services (Uk) Ltd
B,PI,05/02/2020,ICT Departmental Purchases,ICT,"2,150.00",Nowcomm Ltd
B,PI,31/12/2019,ICT Departmental Purchases,ICT,"2,850.00",Nowcomm Ltd
B,PI,31/12/2019,Hardware Contracts,ICT,980.00,Nowcomm Ltd
B,SI,03/02/2020,Car Park Income,High Street Non Retained,"1,159.02",Oasis International Investments Limited
B,PI,02/03/2020,Software Licenses & Contracts,Planning Policy,"3,329.48",Objective Keystone Ltd
B,PI,05/03/2020,Professional Theatre Fees,Brewhouse Cafe/Bar,"2,105.78",Off The Kerb Productions
B,SI,18/03/2020,Other Homeless Prevention,Housing Options,"1,762.36",Orbit Housing Association
B,PI,01/01/2020,Maintenance Contracts,Brewhouse Arts Centre,615.53,Otis Ltd
B,SI,16/02/2020,Subscriptions,Housing Benefits Admin,780.00,Ovaltech Ltd
B,PI,19/03/2020,Consultants,Planning Policy,"23,250.00",Oxford Economics
B,PI,10/01/2020,Direct Purchases,DSO Stores Account,627.00,P.D.J. Imports Limited
B,SI,15/01/2020,Temporary Staff Costs,Development Control,"1,503.33",Park Avenue Recruitment Ltd
B,SI,29/01/2020,Temporary Staff Costs,Development Control,"2,900.75",Park Avenue Recruitment Ltd
B,SI,18/12/2019,Temporary Staff Costs,Development Control,"1,480.10",Park Avenue Recruitment Ltd
B,SI,17/02/2020,Temporary Staff Costs,Development Control,"1,373.50",Park Avenue Recruitment Ltd
B,SI,25/02/2020,Temporary Staff Costs,Development Control,"1,438.28",Park Avenue Recruitment Ltd
B,SI,17/03/2020,Temporary Staff Costs,Development Control,"1,369.40",Park Avenue Recruitment Ltd
B,SI,12/02/2020,Temporary Staff Costs,Development Control,"1,359.15",Park Avenue Recruitment Ltd
B,SI,23/12/2019,Temporary Staff Costs,Development Control,"1,564.83",Park Avenue Recruitment Ltd
B,SI,05/02/2020,Temporary Staff Costs,Development Control,"1,462.33",Park Avenue Recruitment Ltd
B,SI,23/03/2020,Temporary Staff Costs,Development Control,"1,479.28",Park Avenue Recruitment Ltd
B,SI,03/03/2020,Temporary Staff Costs,Development Control,"1,722.00",Park Avenue Recruitment Ltd
B,SI,10/03/2020,Temporary Staff Costs,Development Control,"1,348.90",Park Avenue Recruitment Ltd
B,PI,27/02/2020,Printing and Stationery,Licensing,826.20,Pearson Education Ltd
B,SI,13/03/2020,Departmental Postages,Business Rate Collection,997.81,PHD Mail Ltd
B,SI,13/03/2020,Printing and Stationery,Council Tax Collection,"2,582.56",PHD Mail Ltd
B,SI,13/03/2020,Departmental Postages,Council Tax Collection,"13,829.31",PHD Mail Ltd
B,SI,13/03/2020,Departmental Postages,Council Tax Collection,776.96,PHD Mail Ltd
B,SI,10/01/2020,Departmental Postages,Council Tax Collection,637.04,PHD Mail Ltd
B,SI,13/03/2020,Departmental Postages,Housing Benefits Admin,"1,250.50",PHD Mail Ltd
B,SI,22/02/2020,Maintenance Contracts,Public Conveniences,"2,385.83",PHS Group Plc
B,SI,18/03/2020,Fees and Charges,Development Control,"1,386.00",PortalPlanQuest Ltd
B,SI,13/01/2020,Fees and Charges,Development Control,924.00,PortalPlanQuest Ltd
B,SI,26/03/2020,Miscellaneous Licenses,Brewhouse Arts Centre,637.85,PPL PRS LTD
B,PI,25/03/2020,DFG Contractor Payments,Housing Standards,"1,244.11",Premiere Healthcare Ltd
B,SI,05/12/2019,Rents,Millers Lane Depot,"6,562.50",Preston Securities Limited
B,PI,30/03/2020,DFG Contractor Payments,Housing Standards,830.83,Prism UK Medical Ltd
B,PI,11/06/2019,DFG Contractor Payments,Housing Standards,"3,733.00",Prism UK Medical Ltd
B,SI,22/01/2020,Franking Machine Postages,Central Reprographics,"5,073.35",Purchase Power
B,SI,22/12/2019,Franking Machine Postages,Central Reprographics,"5,224.15",Purchase Power
B,PI,28/11/2019,Christmas Decorations,Grants for Tourism,"3,000.00",Pyrotex Fireworx Ltd
B,SI,06/12/2019,Books and Publications,Business Rate Collection,895.00,Rating & Valuation Reporter
B,PI,31/01/2020,Advertising,Car Parks - General,"1,015.52",Reach Publishing Services Ltd
B,PI,08/03/2020,Advertising,Council Tax Collection,"1,107.84",Reach Publishing Services Ltd
B,PI,08/03/2020,Advertising,Council Tax Collection,"1,629.26",Reach Publishing Services Ltd
B,PI,12/01/2020,Advertising,Development Control,784.72,Reach Publishing Services Ltd
B,PI,23/02/2020,Advertising,Development Control,530.72,Reach Publishing Services Ltd
B,PI,09/02/2020,Advertising,Development Control,553.80,Reach Publishing Services Ltd
B,SI,18/03/2020,Wasps Expenditure,Councillors Community Fund,780.79,Red Lion House Charity
B,PI,20/03/2020,Direct Purchases,Recycling,768.00,Reflex Print & Design
B,PI,31/10/2019,Direct Purchases,Recycling,768.00,Reflex Print & Design
B,PI,24/12/2019,Training Expenses,Corporate Training,"1,100.00",Remploy Ltd
B,PI,09/09/2019,Office Equipment,Building Consultancy Chargeable Activities,715.50,RIBA Enterprises
B,SI,17/01/2020,Contract Payments,Millers Lane Depot,"1,780.00",Robert Lee Plant Ltd
B,SI,06/03/2020,Legal Costs,Housing Options - Accommodation,"2,000.00",Ropewalk Chambers
B,SI,29/01/2020,Legal Costs,Housing Options - Accommodation,"1,800.00",Ropewalk Chambers
B,PI,18/12/2019,Advertising,Cultural Services Marketing,657.00,Rowtype Printers Ltd T/A Hawksworth
B,SI,17/12/2019,Departmental Postages,Parliamentary Elections,"1,308.88",Royal Mail Group Ltd
B,SI,21/01/2020,Departmental Postages,Parliamentary Elections,892.40,Royal Mail Group Ltd
B,PI,20/12/2019,Consultants,Development Control,575.00,RSK ADAS Ltd
B,PI,20/12/2019,Consultants,Development Control,575.00,RSK ADAS Ltd
B,PI,20/12/2019,Consultants,Development Control,575.00,RSK ADAS Ltd
B,PI,20/12/2019,Consultants,Development Control,950.00,RSK ADAS Ltd
B,SI,31/01/2020,Consultants,Asset Management,715.00,Rushton Hickman Partnership
B,SI,12/02/2020,Repairs & Maintenance to Buildings,Facilities Management,665.25,Saddlers Fire Protection
B,SI,29/01/2020,Consultants,Asset Management,750.00,Salloway Property Consultants
B,SI,07/02/2020,Consultants,Asset Management,750.00,Salloway Property Consultants
B,SI,26/03/2020,Consultants,Asset Management,750.00,Salloway Property Consultants
B,SI,07/02/2020,Consultants,Asset Management,"1,250.00",Salloway Property Consultants
B,SI,07/02/2020,Consultants,Asset Management,750.00,Salloway Property Consultants
B,SI,23/03/2020,Consultants,Asset Management,500.00,Salloway Property Consultants
B,PI,17/12/2019,Other Equipment,Parliamentary Elections,"1,625.00",Scorpion Event Solutions Ltd.
B,PI,23/01/2020,Consultants,Development Control,"1,795.00",SCP Ltd
B,SI,29/02/2020,Cash Collection Security Services,Car Parks - General,"3,030.07",Security Plus + Limited
B,SI,29/02/2020,Cash Collection Security Services,Car Parks - General,505.08,Security Plus + Limited
B,SI,31/01/2020,Cash Collection Security Services,Car Parks Collection and Processing,532.20,Security Plus + Limited
B,SI,31/01/2020,Cash Collection Security Services,Car Parks Collection and Processing,"3,178.39",Security Plus + Limited
B,SI,27/03/2020,Recruitment Costs,Financial Management Unit,"6,838.65",Sellick Partnership Ltd
B,PI,12/02/2020,Printing and Stationery,Police Elections,"1,151.64",Shaw & Sons Limited
B,SI,12/03/2020,Project Grant Payments,Social Regeneration,"17,588.00",Sinai Park House Trust
B,SI,24/12/2019,Car Park Season Ticket Income,Car Parks - General,814.57,Smith Partnership Solicitors
B,PI,29/11/2019,Maintenance Contracts,Brewhouse Arts Centre,"1,369.00",Solutions on Stage
B,SI,23/01/2020,Temporary Staff Costs,Development Control,"4,528.42",South Derbyshire District Council
B,SI,14/02/2020,Water Services,Open Spaces,"2,292.04",South Staffordshire Water Business
B,SI,27/02/2020,Repairs & Maintenance to Buildings,Public Conveniences,700.00,South Staffordshire Water Business
B,SI,24/02/2020,Water Services,Public Conveniences,825.00,South Staffordshire Water Business
B,SI,06/02/2020,Water Services,Burton Retail Market,593.62,South Staffs Water
B,SI,06/02/2020,Water Services,Burton Retail Market,"1,406.73",South Staffs Water
B,SI,15/01/2020,Third Party Payments,Internal Audit,"5,136.83",South Warwickshire NHS Foundation Trust
B,SI,05/02/2020,Third Party Payments,Internal Audit,"5,136.83",South Warwickshire NHS Foundation Trust
B,SI,16/03/2020,Third Party Payments,Internal Audit,"5,136.83",South Warwickshire NHS Foundation Trust
B,SI,12/02/2020,External Funding Income,Health & Leisure Grants,"1,970.98",Sports & Leisure Management Ltd
B,SI,11/03/2020,Contract Payments,Leisure Management,"5,812.00",Sports & Leisure Management Ltd
B,SI,28/01/2020,Contract Payments,Leisure Management,"34,132.52",Sports & Leisure Management Ltd
B,SI,17/01/2020,Contract Payments,Leisure Management,"30,000.00",Sports & Leisure Management Ltd
B,SI,17/01/2020,Contract Payments,Leisure Management,"123,566.19",Sports & Leisure Management Ltd
B,SI,20/12/2019,Contributions to Other Bodies,Leisure Management,"4,000.00",Sports & Leisure Management Ltd
B,SI,03/02/2020,Third Party Payments,Leisure Management,"13,288.33",Sports & Leisure Management Ltd
B,SI,03/03/2020,Third Party Payments,Leisure Management,"36,939.65",Sports & Leisure Management Ltd
B,SI,03/02/2020,Third Party Payments,Leisure Management,"36,939.65",Sports & Leisure Management Ltd
B,SI,03/03/2020,Third Party Payments,Leisure Management,"19,522.05",Sports & Leisure Management Ltd
B,SI,03/03/2020,Third Party Payments,Leisure Management,"13,288.33",Sports & Leisure Management Ltd
B,SI,09/12/2019,Third Party Payments,Leisure Management,"36,939.65",Sports & Leisure Management Ltd
B,SI,07/01/2020,Third Party Payments,Leisure Management,"19,522.05",Sports & Leisure Management Ltd
B,SI,09/12/2019,Third Party Payments,Leisure Management,"19,522.05",Sports & Leisure Management Ltd
B,SI,09/12/2019,Third Party Payments,Leisure Management,"13,288.33",Sports & Leisure Management Ltd
B,SI,03/02/2020,Third Party Payments,Leisure Management,"19,522.05",Sports & Leisure Management Ltd
B,SI,07/01/2020,Third Party Payments,Leisure Management,"13,288.33",Sports & Leisure Management Ltd
B,SI,08/01/2020,Third Party Payments,Leisure Management,"36,939.65",Sports & Leisure Management Ltd
B,SI,08/01/2020,Parking Charges Income,Meadowside Leisure Centre Car Park,"9,145.00",Sports & Leisure Management Ltd
B,SI,18/02/2020,Parking Charges Income,Meadowside Leisure Centre Car Park,"9,974.17",Sports & Leisure Management Ltd
B,SI,18/02/2020,Parking Charges Income,Meadowside Leisure Centre Car Park,"7,620.83",Sports & Leisure Management Ltd
B,SI,03/01/2020,Parking Charges Income,Meadowside Leisure Centre Car Park,"11,258.33",Sports & Leisure Management Ltd
B,SI,03/01/2020,Parking Charges Income,Meadowside Leisure Centre Car Park,"10,172.50",Sports & Leisure Management Ltd
B,SI,08/01/2020,Parking Charges Income,Uttoxeter Leisure Centre Car Park,"4,758.00",Sports & Leisure Management Ltd
B,SI,03/01/2020,Parking Charges Income,Uttoxeter Leisure Centre Car Park,"4,970.83",Sports & Leisure Management Ltd
B,SI,11/03/2020,Parking Charges Income,Uttoxeter Leisure Centre Car Park,"5,913.33",Sports & Leisure Management Ltd
B,SI,18/02/2020,Parking Charges Income,Uttoxeter Leisure Centre Car Park,"3,965.00",Sports & Leisure Management Ltd
B,SI,03/01/2020,Parking Charges Income,Uttoxeter Leisure Centre Car Park,"5,552.50",Sports & Leisure Management Ltd
B,SI,18/02/2020,Parking Charges Income,Uttoxeter Leisure Centre Car Park,"5,359.17",Sports & Leisure Management Ltd
B,SI,18/02/2020,Parking Charges Income,Uttoxeter Leisure Centre Car Park,"5,568.33",Sports & Leisure Management Ltd
B,PI,11/02/2020,Professional Support,Cultural Services Delivery Review,"1,603.00",Squire Patton Boggs (Uk) LLP
B,SI,11/02/2020,Legal Costs,Leisure Management,"1,250.00",Squire Patton Boggs (Uk) LLP
B,PI,18/12/2019,Professional Fees,Planning Policy,"1,310.00",Stafford Borough Council
B,SI,12/03/2020,IT Links to Remote Sites,ICT,"2,969.44",Staffordshire County Council
B,SI,06/01/2020,Search and Investigation Fees,Land Charges,"2,827.50",Staffordshire County Council
B,SI,25/02/2020,Search and Investigation Fees,Land Charges,"6,387.25",Staffordshire County Council
B,SI,26/03/2020,Search and Investigation Fees,Land Charges,"2,904.50",Staffordshire County Council
B,SI,18/12/2019,Search and Investigation Fees,Land Charges,"3,912.50",Staffordshire County Council
B,SI,04/02/2020,Search and Investigation Fees,Land Charges,"1,554.50",Staffordshire County Council
B,SI,30/08/2019,Legal Costs,Legal Services,589.00,Staffordshire County Council
B,SI,31/03/2020,Superannuation Payments,Pension Payments,"16,417.38",Staffordshire County Council
B,PI,11/02/2020,Promotional Materials,Recycling,500.00,Staffordshire County Council
B,SI,31/03/2020,Third Party Payments,Trade Waste Recycling,"9,206.78",Staffordshire County Council
B,SI,24/12/2019,Professional Support,Leisure Management,600.00,Staffordshire County Pension Fund
B,SI,06/02/2020,Actuarial Strain Contributions,Pension Payments,"5,846.40",Staffordshire County Pension Fund
B,PI,27/01/2020,Pest Control Contracts,Pest Control & Animal Welfare,"1,800.00",Staffordshire Moorlands D C
B,SI,20/03/2020,Wasps Expenditure,Councillors Community Fund,503.40,Stretton Gala Committee
B,SI,10/02/2020,Consultants,Development Control,"1,143.87",Tamworth Borough Council
B,SI,24/03/2020,Consultants,Development Control,891.73,Tamworth Borough Council
B,SI,18/01/2020,Consultants,Development Control,878.26,Tamworth Borough Council
B,SI,18/12/2019,Consultants,Development Control,"1,117.25",Tamworth Borough Council
B,SI,18/01/2020,Consultants,Development Control,859.79,Tamworth Borough Council
B,PI,04/03/2020,General Grants,Enterprise,"1,042.53",Tamworth Borough Council
B,PI,07/01/2020,Contracted Grounds Maintenance,Cemeteries,650.00,Teleshore UK Ltd
B,PI,17/03/2020,Direct Purchases,DSO Stores Account,720.00,Tennants Distribution Ltd
B,PI,14/01/2020,Vehicle Maintenance Costs,Recycling,720.00,Tennants Distribution Ltd
B,PI,31/05/2019,Consultants,Open Spaces,980.00,TGMS Ltd
B,PI,21/06/2019,Consultants,Open Spaces,"1,870.00",TGMS Ltd
B,SI,28/02/2020,Section 50 Burials,Environmental Health,"1,250.00",The Co-operative Funeralcare
B,PI,09/12/2019,DFG Contractor Payments,Housing Standards,"1,987.00",The Excellent Ramp System Ltd
B,PI,25/03/2020,DFG Contractor Payments,Housing Standards,"3,825.00",The Excellent Ramp System Ltd
B,PI,13/02/2020,DFG Contractor Payments,Housing Standards,"1,820.00",The Excellent Ramp System Ltd
B,PI,07/01/2020,DFG Contractor Payments,Housing Standards,"3,850.00",The Excellent Ramp System Ltd
B,SI,07/02/2020,Wasps Expenditure,Councillors Community Fund,500.00,The Friends of Bramshall Road Park
B,SI,11/03/2020,Rents,Coopers Square Car Park - Surface,"4,655.39",The Hollins Murray Group Limited
B,SI,18/02/2020,Contributions to Other Bodies,Parliamentary Elections,500.00,The Labour Party
B,SI,21/01/2020,Other Expenses,Brewhouse Community Ticket Sales,"12,688.00",The Mellow Dramatics
B,PI,30/03/2020,General Grants,Enterprise,"9,000.00",The National Forest Company
B,PI,07/02/2020,Play Equipment,Open Spaces,"3,444.50",The Play Inspection Company Ltd
B,SI,26/03/2020,Direct Purchases,DSO Stores Account,600.00,The Staffordshire Gin Company Ltd
B,SI,11/02/2020,Other Expenses,Brewhouse Community Ticket Sales,"1,052.00",The William Allitt School
B,SI,01/12/2019,Subscriptions,Development Control,"3,130.02",Thomson Reuters (Professional) UK Ltd
B,SI,03/12/2019,Miscellaneous Licenses,Brewhouse Arts Centre,"2,555.96",Tickets.com Ltd
B,SI,19/03/2020,Other Expenses,Brewhouse Community Ticket Sales,"2,412.00",Tindles Dance & Drama Studios
B,SI,08/02/2020,Electricity,Brewhouse Arts Centre,678.67,Total Gas & Power
B,SI,06/08/2019,Electricity,Brewhouse Arts Centre,753.61,Total Gas & Power
B,SI,15/07/2019,Electricity,Brewhouse Arts Centre,808.98,Total Gas & Power
B,SI,06/09/2019,Electricity,Brewhouse Arts Centre,588.24,Total Gas & Power
B,SI,07/12/2019,Electricity,Brewhouse Arts Centre,660.60,Total Gas & Power
B,SI,06/10/2019,Electricity,Brewhouse Arts Centre,690.36,Total Gas & Power
B,SI,11/03/2020,Electricity,Brewhouse Arts Centre,687.72,Total Gas & Power
B,SI,14/01/2020,Electricity,Brewhouse Arts Centre,665.19,Total Gas & Power
B,SI,28/11/2019,Electricity,Brewhouse Arts Centre,714.29,Total Gas & Power
B,SI,14/01/2020,Electricity,Burton Retail Market,"3,221.29",Total Gas & Power
B,SI,11/03/2020,Electricity,Burton Retail Market,"3,359.56",Total Gas & Power
B,SI,08/02/2020,Electricity,Burton Retail Market,"3,317.72",Total Gas & Power
B,SI,14/01/2020,Electricity,Facilities Management,"3,027.34",Total Gas & Power
B,SI,08/02/2020,Electricity,Facilities Management,"3,014.74",Total Gas & Power
B,SI,11/03/2020,Electricity,Facilities Management,"2,940.81",Total Gas & Power
B,SI,01/03/2020,Maintenance Agreements,Closed Circuit Cameras,"1,334.58",Total Integrated Solutions Ltd
B,PI,20/02/2020,Maintenance Agreements,Closed Circuit Cameras,"3,919.51",Total Integrated Solutions Ltd
B,PI,24/02/2020,Maintenance Agreements,Closed Circuit Cameras,"2,587.09",Total Integrated Solutions Ltd
B,SI,27/03/2020,Accommodation Costs - B & B/Hotels,Housing Options - Accommodation,540.00,TQ Hotels Ltd
B,SI,29/01/2020,Grounds Maintenance,Open Spaces,"2,000.00",Treewise Solutions Ltd
B,SI,28/01/2020,General Grants,Housing Options,"48,000.00",Trent & Dove Housing
B,SI,09/03/2020,General Grants,Housing Options,"1,307.10",Trent & Dove Housing
B,SI,08/01/2020,Rents,Housing Options - Accommodation,"1,082.04",Trent & Dove Housing
B,SI,10/02/2020,Rents,Housing Options - Accommodation,"1,274.00",Trent & Dove Housing
B,SI,08/01/2020,Rents,Housing Options - Accommodation,"2,575.00",Trent & Dove Housing
B,PI,17/12/2019,General Grants,Neighbourhood Planning,"1,300.00",Trevor Roberts Associates
B,PI,10/02/2020,Promotional Materials,Enforcement Section,637.70,TSC Signs Ltd
B,PI,20/02/2020,Training Expenses,Corporate Training,"1,750.00","UK Apollo Group Ltd, t/a Outplacement First"
B,SI,09/12/2019,Software Licenses & Contracts,Income Management,608.11,Unit 4 Business Software (Ireland) Ltd
B,PI,31/12/2019,Professional Support,Financial Management Unit,"1,300.00",Unit4 Business Software Ltd
B,PI,20/02/2020,Professional Support,Financial Management Unit,"3,900.00",Unit4 Business Software Ltd
B,PI,17/12/2019,Professional Support,Financial Management Unit,"1,488.27",Unit4 Business Software Ltd
B,PI,23/12/2019,Analysts Fees,Environmental Health,960.28,United Utilities Water Ltd
B,SI,17/02/2020,Contributions to Other Bodies,Brewhouse Arts Centre,"3,000.00",University Of Derby
B,SI,27/02/2020,Wasps Expenditure,Councillors Community Fund,"1,000.00",Uttoxeter Community Garden
B,SI,28/02/2020,Wasps Expenditure,Councillors Community Fund,830.62,Uttoxeter Pre-School
B,SI,12/02/2020,Temporary Staff Costs,Development Control,"4,884.00",Vivid Resourcing
B,SI,15/01/2020,Temporary Staff Costs,Development Control,"1,665.00",Vivid Resourcing
B,SI,23/12/2019,Temporary Staff Costs,Development Control,"5,843.21",Vivid Resourcing
B,SI,29/01/2020,Temporary Staff Costs,Development Control,"7,713.85",Vivid Resourcing
B,SI,08/01/2020,Temporary Staff Costs,Development Control,"2,932.50",Vivid Resourcing
B,SI,15/01/2020,Temporary Staff Costs,Development Control,"2,659.80",Vivid Resourcing
B,SI,08/01/2020,Temporary Staff Costs,Development Control,"3,692.15",Vivid Resourcing
B,SI,22/01/2020,Temporary Staff Costs,Development Control,"7,870.44",Vivid Resourcing
B,SI,23/12/2019,Temporary Staff Costs,Development Control,"1,665.00",Vivid Resourcing
B,SI,05/02/2020,Temporary Staff Costs,Development Control,"1,879.80",Vivid Resourcing
B,SI,05/02/2020,Temporary Staff Costs,Development Control,"1,564.50",Vivid Resourcing
B,SI,19/02/2020,Temporary Staff Costs,Development Control,"1,665.00",Vivid Resourcing
B,SI,11/03/2020,Temporary Staff Costs,Development Control,"1,665.00",Vivid Resourcing
B,SI,19/12/2019,Temporary Staff Costs,Development Control,"5,321.51",Vivid Resourcing
B,SI,15/01/2020,Temporary Staff Costs,Development Control,"2,352.86",Vivid Resourcing
B,SI,26/02/2020,Temporary Staff Costs,Development Control,"1,665.00",Vivid Resourcing
B,PI,15/01/2020,Consultants,Environmental Health,630.81,Vivid Resourcing
B,SI,19/02/2020,Consultants,Environmental Health,573.19,Vivid Resourcing
B,SI,18/03/2020,Consultants,Environmental Health,645.00,Vivid Resourcing
B,SI,25/03/2020,Consultants,Environmental Health,637.69,Vivid Resourcing
B,SI,12/02/2020,Consultants,Environmental Health,623.50,Vivid Resourcing
B,SI,29/01/2020,Consultants,Environmental Health,"1,279.25",Vivid Resourcing
B,PI,11/03/2020,Consultants,Environmental Health,634.25,Vivid Resourcing
B,SI,05/02/2020,Consultants,Environmental Health,645.00,Vivid Resourcing
B,SI,18/03/2020,Temporary Staff Costs,Planning Policy,"1,665.00",Vivid Resourcing
B,SI,25/03/2020,Temporary Staff Costs,Planning Policy,"1,665.00",Vivid Resourcing
B,SI,17/02/2020,Mobile Telephones,ICT,707.81,Vodafone Limited
B,SI,16/03/2020,Mobile Telephones,ICT,693.03,Vodafone Limited
B,SI,15/01/2020,Mobile Telephones,ICT,680.08,Vodafone Limited
B,SI,16/12/2019,Mobile Telephones,ICT,671.06,Vodafone Limited
B,SI,04/02/2020,IT Links to Remote Sites,ICT,"3,899.64",Vodafone T/A Cable & Wireless UK
B,SI,13/02/2020,Telephones,Switchboard and Reception,"1,040.48",Vodafone T/A Cable & Wireless UK
B,SI,11/12/2019,Telephones,Switchboard and Reception,975.02,Vodafone T/A Cable & Wireless UK
B,SI,03/02/2020,Telephones,Switchboard and Reception,905.75,Vodafone T/A Cable & Wireless UK
B,PI,19/03/2020,"Seeds, Plants and Shrubs",Horticultural Resource Centre,"1,333.18",Volmary Ltd
B,PI,19/03/2020,"Seeds, Plants and Shrubs",Horticultural Resource Centre,677.17,Volmary Ltd
B,SI,27/02/2020,Water Services,Car Parks - General,"1,063.44",Water Plus Ltd
B,SI,22/01/2020,Water Services,Cemeteries,"1,201.88",Water Plus Ltd
B,SI,25/02/2020,Water Services,Customer Services Centres,541.87,Water Plus Ltd
B,SI,25/01/2020,Water Services,Facilities Management,828.93,Water Plus Ltd
B,SI,27/02/2020,Water Services,High Steet Car Park,"11,283.33",Water Plus Ltd
B,SI,25/01/2020,Water Services,Leisure Management,692.30,Water Plus Ltd
B,SI,14/01/2020,Water Services,Leisure Management,"10,842.15",Water Plus Ltd
B,SI,01/01/2020,Maintenance Contracts,Facilities Management,640.25,Waterlogic GB Limited
B,PI,13/02/2020,Repairs & Maintenance to Buildings,Facilities Management,"2,508.50",Waterman Environmental Services Ltd
B,PI,18/02/2020,Repairs & Maintenance to Buildings,Facilities Management,"2,508.50",Waterman Environmental Services Ltd
B,SI,17/01/2020,Direct Purchases,DSO Stores Account,"30,240.02",Watson Petroleum Ltd
B,SI,26/02/2020,Direct Purchases,DSO Stores Account,"28,471.90",Watson Petroleum Ltd
B,SI,03/02/2020,Direct Purchases,DSO Stores Account,"1,032.00",Watson Petroleum Ltd
B,SI,17/12/2019,Direct Purchases,DSO Stores Account,"29,962.00",Watson Petroleum Ltd
B,PI,24/01/2020,Website Construction & Maintenance,Programmes and Transformation,"1,100.00",Webcurl Ltd
B,PI,19/09/2019,CCTV Manning Contract,Closed Circuit Cameras,"28,750.00",West Midlands Combined Authority
B,PI,28/01/2020,Training Expenses,Corporate Training,"1,700.00",West Midlands Employers
B,PI,12/02/2020,Training Expenses,Corporate Training,780.00,West Midlands Employers
B,PI,24/02/2020,Training Expenses,Corporate Training,"1,003.33",Westgate Transport Training Ltd
B,SI,13/01/2020,Other Homeless Prevention,Housing Options,920.00,White Kite Ltd T/A Nicholas Humphreys
B,PI,17/01/2020,Play Equipment,Open Spaces,"17,999.00",Wicksteed Leisure Ltd
B,PI,16/03/2020,Hire of Equipment,Brewhouse Arts Centre,684.50,Willowbrook Technical Services Ltd
B,PI,03/02/2020,Hire of Equipment,Brewhouse Arts Centre,630.00,Willowbrook Technical Services Ltd
B,PI,12/02/2020,Hire of Equipment,Brewhouse Arts Centre,935.00,Willowbrook Technical Services Ltd
B,SI,31/01/2020,Third Party Payments,Recycling,"8,289.93",Willshee�s Waste & Recycling Ltd
B,SI,31/12/2019,Third Party Payments,Recycling,"6,595.37",Willshee�s Waste & Recycling Ltd
B,PI,20/01/2020,Repairs & Maintenance to Buildings,Burton Retail Market,"1,275.00",Wilson Varnam Ltd
B,SI,09/01/2020,Wasps Expenditure,Councillors Community Fund,"1,000.00",Winshill Parish Council
B,SI,14/01/2020,Grounds Maintenance,Open Spaces,"2,100.00",Winshill Parish Council
B,SI,26/02/2020,Project Grant Payments,Social Regeneration,"7,000.00",Wonderdale Care
B,SI,20/03/2020,Wasps Expenditure,Councillors Community Fund,972.00,Wootton Cricket Club
B,PI,16/01/2020,Maintenance Contracts,Brewhouse Arts Centre,590.00,Workplatform Ltd
B,PI,06/09/2019,Litter Bins,Street Cleaning,"6,080.00",Wybone Ltd
B,SI,16/12/2019,Wasps Expenditure,Councillors Community Fund,"1,000.00",Youth Emotional Support Service
B,SI,25/02/2020,Wasps Expenditure,Councillors Community Fund,500.00,Yoxall Parish Council
B,SI,13/03/2020,General Grants,Social Regeneration,500.00,Yoxall Parish Council
B,SI,24/02/2020,General Grants,Housing Options,923.07,Zoe Matthews Lettings
